[Event "Centenary THK University 2019"]
[Site "Ankara"]
[Date "2019.05.18"]
[Round "3"]
[White "Bozdemir, Yusuf"]
[Black "Ozalp, Burak"]
[Result "0-1"]
[ECO "E61"]
[WhiteElo "1619"]
[BlackElo "1901"]
[Annotator "NA"]
[PlyCount "88"]
[EventDate "2019.05.17"]
[EventType "swiss"]
[EventCountry "TUR"]
[SourceTitle "playchess.com"]
[Source "ChessBase"]
[SourceQuality "1"]
[TimeControl "5400+30"]

1. d4 {[%emt 0:30:30]} g6 {[%emt 0:31:30]} 2. Nf3 {[%emt 0:00:00]} Bg7 {[%emt 0:00:30]} 3. Bf4 {[%emt 0:00:00]} d6 {[%emt 0:00:00]} 4. e3 {[%emt 0:00:30]} Nf6 {[%emt 0:00:00]} 5. h3 {[%emt 0:00:00]} Nbd7 {[%emt 0:00:30]} 6. Be2 {[%emt 0:00:00]} b6 {[%emt 0:00:00]} 7. c4 {[%emt 0:00:30]} Bb7 {[%emt 0:00:00]} 8. Nc3 {[%emt 0:00:30]} O-O {[%emt 0:00:30]} 9. O-O {[%emt 0:00:00]} Re8 {[%emt 0:00:30]} 10. Re1 {[%emt 0:00:00]} e5 {[%emt 0:00:30]} 11. Bh2 {[%emt 0:00:30]} exd4 {[%emt 0:00:30]} 12. exd4 {[%emt 0:00:30]} Ne4 {[%emt 0:01:30]} 13. Nxe4 {[%emt 0:00:00]} Bxe4 {[%emt 0:00:00]} 14. Rc1 {[%emt 0:08:00]} Qf6 {[%emt 0:07:00]} 15. b4 {[%emt 0:01:30]} a5 {[%emt 0:05:30]} 16. b5 {[%emt 0:07:30]} Re7 {[%emt 0:02:30]} 17. Bg3 {[%emt 0:02:30]} h6 $15 {[%emt 0:03:30]} 18. c5 {[%emt 0:16:30]} bxc5 {[%emt 0:02:30]} 19. dxc5 {[%emt 0:00:30]} Nxc5 {[%emt 0:00:30]} 20. b6 {[%emt 0:00:30]} cxb6 {[%emt 0:00:30]} 21. Qxd6 {[%emt 0:00:30]} Re6 {[%emt 0:03:30]} 22. Qf4 {[%emt 0:06:30]} Qb2 {[%emt 0:02:30]} 23. Bc4 {[%emt 0:01:30]} Rf6 {[%emt 0:05:30]} 24. Qd2 {[%emt 0:07:17]} Qxd2 {[%emt 0:03:30]} 25. Nxd2 {[%emt 0:00:07]} Bd3 {[%emt 0:01:30]} 26. Re7 {[%emt 0:04:42]} Rd8 {[%emt 0:08:33]} 27. Bc7 {[%emt 0:05:55]} Rc8 {[%emt 0:02:31]} 28. Be5 {[%emt 0:01:24]} Bxc4 {[%emt 0:02:40]} 29. Rxc4 {[%emt 0:01:33]} Rfc6 {[%emt 0:02:07]} 30. Bxg7 {[%emt 0:02:02]} Kxg7 {[%emt 0:00:35]} 31. Rf4 {[%emt 0:00:08]} Rf6 {[%emt 0:00:30]} 32. Rd4 {[%emt 0:00:30]} b5 {[%emt 0:01:17]} 33. Rd5 {[%emt 0:01:29]} Rf5 {[%emt 0:04:06]} 34. Rxf5 {[%emt 0:00:56]} gxf5 {[%emt 0:00:30]} 35. Ra7 {[%emt 0:00:03]} a4 {[%emt 0:00:41]} 36. Nf3 {[%emt 0:00:24]} b4 {[%emt 0:00:35]} 37. Ne5 {[%emt 0:01:25]} b3 {[%emt 0:00:00]} 38. axb3 {[%emt 0:01:18]} axb3 {[%emt 0:00:27]} 39. Ra5 {[%emt 0:00:30]} f6 {[%emt 0:00:30]} 40. Nc4 {[%emt 0:00:30]} Nd3 {[%emt 0:02:12]} 41. Nd2 {[%emt 0:00:32]} Rc1+ {[%emt 0:00:59]} 42. Kh2 {[%emt 0:00:11]} b2 {[%emt 0:00:40]} 43. Rb5 {[%emt 0:00:49]} Rd1 {[%emt 0:00:13]} 44. Rb7+ {[%emt 0:00:20]} Kf8 {[%emt 0:00:57]} 0-1

[Event "Centenary THK University 2019"]
[Site "Ankara"]
[Date "2019.05.18"]
[Round "3"]
[White "Sinay, Ahmet"]
[Black "Celikel, Fatih"]
[Result "0-1"]
[ECO "C68"]
[WhiteElo "1501"]
[BlackElo "1868"]
[Annotator "NA"]
[PlyCount "184"]
[EventDate "2019.05.17"]
[EventType "swiss"]
[EventCountry "TUR"]
[SourceTitle "playchess.com"]
[Source "ChessBase"]
[SourceQuality "1"]
[TimeControl "5400+30"]

1. e4 {[%emt 0:30:30]} e5 {[%emt 0:30:30]} 2. Nf3 {[%emt 0:00:30]} Nc6 {[%emt 0:00:30]} 3. Bb5 {[%emt 0:00:00]} a6 {[%emt 0:00:00]} 4. Bxc6 {[%emt 0:00:00]} dxc6 {[%emt 0:00:00]} 5. O-O {[%emt 0:00:30]} Bg4 {[%emt 0:00:00]} 6. h3 {[%emt 0:00:00]} Bh5 {[%emt 0:00:00]} 7. d3 {[%emt 0:00:00]} Bd6 {[%emt 0:10:30]} 8. Nbd2 {[%emt 0:00:00]} Qf6 {[%emt 0:01:30]} 9. Re1 {[%emt 0:00:00]} g5 {[%emt 0:00:30]} 10. Nf1 {[%emt 0:03:30]} h6 {[%emt 0:03:30]} (10... Bxf3 $5 11. Qxf3 Qxf3 12. gxf3 Ne7 $11) 11. Ng3 {[%emt 0:03:30]} Bg6 {[%emt 0:00:30]} (11... Bxf3 $1 $11 12. Qxf3 Qxf3 13. gxf3 Ne7) 12. b3 {[%emt 0:01:30]} Bb4 {[%emt 0:01:30]} (12... O-O-O $11 {remains equal.}) 13. Bb2 {[%emt 0:00:30]} Bd6 {[%emt 0:09:30]} 14. d4 {[%emt 0:00:00]} Qe6 {[%emt 0:00:30]} 15. Nxe5 {[%emt 0:02:00]} Bxe5 {[%emt 0:01:30]} 16. dxe5 {[%emt 0:00:00]} Ne7 {[%emt 0:04:30]} 17. Qg4 {[%emt 0:01:00]} O-O-O $16 {[%emt 0:01:30]} 18. Qxe6+ {[%emt 0:01:30]} fxe6 {[%emt 0:00:30]} 19. Ba3 {[%emt 0:00:00]} Rhe8 {[%emt 0:02:30]} 20. Rad1 {[%emt 0:00:00]} c5 {[%emt 0:01:30]} 21. Bxc5 {[%emt 0:00:30]} Nc6 {[%emt 0:00:00]} 22. f3 {[%emt 0:00:30]} b6 {[%emt 0:02:00]} 23. Ba3 {[%emt 0:01:30]} Nd4 {[%emt 0:00:30]} 24. Rc1 {[%emt 0:00:30]} h5 {[%emt 0:03:30]} 25. c3 {[%emt 0:02:30]} Nc6 {[%emt 0:00:30]} 26. Rcd1 {[%emt 0:00:30]} Nxe5 {[%emt 0:01:30]} 27. Rxd8+ {[%emt 0:01:30]} Kxd8 {[%emt 0:00:30]} 28. Rd1+ {[%emt 0:00:30]} Kc8 {[%emt 0:00:30]} 29. Kf2 {[%emt 0:00:30]} Bf7 {[%emt 0:00:30]} 30. Ne2 {[%emt 0:00:00]} Ng6 {[%emt 0:00:30]} 31. Bc1 {[%emt 0:00:00]} g4 {[%emt 0:00:30]} 32. hxg4 {[%emt 0:00:30]} hxg4 {[%emt 0:00:30]} 33. c4 {[%emt 0:02:30]} gxf3 {[%emt 0:00:30]} 34. gxf3 {[%emt 0:00:30]} Rh8 {[%emt 0:00:30]} 35. Bb2 {[%emt 0:01:30]} Rh2+ {[%emt 0:01:30]} 36. Ke3 {[%emt 0:00:00]} e5 {[%emt 0:00:00]} 37. Rg1 {[%emt 0:02:00]} Kd7 {[%emt 0:01:00]} 38. Rg5 {[%emt 0:00:30]} Ke6 {[%emt 0:00:30]} 39. Bc3 {[%emt 0:02:30]} c6 {[%emt 0:03:30]} 40. Ba1 {[%emt 0:04:30]} Rh1 {[%emt 0:03:48]} 41. Rg1 {[%emt 0:00:30]} Rh2 {[%emt 0:00:00]} 42. Rg5 {[%emt 0:00:30]} Kf6 {[%emt 0:01:05]} 43. Rf5+ {[%emt 0:02:30]} Ke6 {[%emt 0:00:38]} 44. Rg5 {[%emt 0:00:30]} a5 {[%emt 0:01:35]} 45. Bc3 {[%emt 0:00:30]} Rh1 {[%emt 0:02:11]} 46. Rg1 {[%emt 0:00:00]} Rh5 {[%emt 0:00:23]} 47. c5 {[%emt 0:01:00]} bxc5 {[%emt 0:01:05]} 48. Bxa5 {[%emt 0:00:30]} Rh2 {[%emt 0:00:51]} 49. Rc1 {[%emt 0:00:30]} Kd6 {[%emt 0:02:16]} 50. Bb6 {[%emt 0:02:30]} c4 {[%emt 0:00:29]} 51. bxc4 {[%emt 0:00:30]} c5 {[%emt 0:00:12]} 52. a4 {[%emt 0:00:30]} Kc6 {[%emt 0:00:36]} 53. a5 {[%emt 0:00:00]} Nh4 {[%emt 0:00:56]} 54. Bd8 {[%emt 0:02:00]} Nxf3 {[%emt 0:04:25]} 55. a6 {[%emt 0:01:30]} Nd4 {[%emt 0:00:51]} 56. Nxd4+ {[%emt 0:00:30]} cxd4+ {[%emt 0:00:49]} 57. Kf3 {[%emt 0:01:30]} Ra2 {[%emt 0:00:30]} 58. Kg4 {[%emt 0:00:30]} Be6+ {[%emt 0:00:30]} 59. Kg5 {[%emt 0:00:30]} d3 {[%emt 0:00:40]} 60. Rd1 {[%emt 0:03:30]} Bxc4 {[%emt 0:01:15]} 61. Kf5 {[%emt 0:00:30]} Kd6 {[%emt 0:00:15]} 62. Bg5 {[%emt 0:02:30]} Rf2+ {[%emt 0:00:19]} 63. Kg6 {[%emt 0:01:30]} Bxa6 {[%emt 0:00:17]} 64. Rd2 {[%emt 0:00:30]} Rf3 {[%emt 0:00:21]} 65. Kh5 {[%emt 0:01:30]} Bb7 {[%emt 0:00:41]} 66. Kg4 {[%emt 0:00:30]} Bxe4 {[%emt 0:00:00]} 67. Ra2 {[%emt 0:00:30]} Bc6 {[%emt 0:00:06]} 68. Rb2 {[%emt 0:03:30]} e4 {[%emt 0:00:10]} 69. Bd2 {[%emt 0:03:30]} Bd7+ {[%emt 0:00:24]} 70. Kg5 {[%emt 0:01:30]} Kd5 {[%emt 0:00:47]} 71. Rb4 {[%emt 0:01:30]} Rf5+ {[%emt 0:01:34]} 72. Kh4 {[%emt 0:00:30]} Rf3 {[%emt 0:00:34]} 73. Bc3 {[%emt 0:00:42]} Bc6 {[%emt 0:00:11]} 74. Kg4 {[%emt 0:00:53]} Kc5 {[%emt 0:00:07]} 75. Rd4 {[%emt 0:02:04]} d2 {[%emt 0:00:32]} 76. Rxd2 {[%emt 0:02:22]} Rxc3 {[%emt 0:00:30]} 77. Kf4 {[%emt 0:00:00]} Rf3+ {[%emt 0:00:00]} 78. Ke5 {[%emt 0:00:10]} e3 {[%emt 0:00:00]} 79. Rc2+ {[%emt 0:00:00]} Kb4 {[%emt 0:00:41]} 80. Kd4 {[%emt 0:00:31]} Bb5 {[%emt 0:00:26]} 81. Rb2+ {[%emt 0:00:57]} Ka4 {[%emt 0:00:30]} 82. Ra2+ {[%emt 0:06:52]} Kb3 {[%emt 0:00:30]} 83. Ra5 {[%emt 0:00:09]} Kb4 {[%emt 0:00:02]} 84. Ra1 {[%emt 0:00:20]} e2 {[%emt 0:00:35]} 85. Rb1+ {[%emt 0:00:08]} Ka5 {[%emt 0:00:00]} 86. Kc5 {[%emt 0:00:21]} Rf5+ {[%emt 0:00:19]} 87. Kd4 {[%emt 0:00:40]} Rf1 {[%emt 0:00:07]} 88. Rb2 {[%emt 0:00:00]} e1=Q {[%emt 0:01:03]} 89. Ra2+ {[%emt 0:00:35]} Kb6 {[%emt 0:00:08]} 90. Rh2 {[%emt 0:00:36]} Rf4+ {[%emt 0:00:30]} 91. Kd5 {[%emt 0:00:04]} Qe4+ {[%emt 0:00:13]} 92. Kd6 {[%emt 0:00:04]} Rf6# {[%emt 0:00:00]} 0-1

[Event "Centenary THK University 2019"]
[Site "Ankara"]
[Date "2019.05.18"]
[Round "3"]
[White "Demir, Onder"]
[Black "Gedik, Ahmet"]
[Result "1/2-1/2"]
[ECO "D04"]
[WhiteElo "1428"]
[BlackElo "1438"]
[Annotator "NA RC"]
[PlyCount "61"]
[EventDate "2019.05.17"]
[EventType "swiss"]
[EventCountry "TUR"]
[SourceTitle "playchess.com"]
[Source "ChessBase"]
[SourceQuality "1"]
[TimeControl "5400+30"]

1. d4 {[%emt 0:30:30]} d5 {[%emt 0:30:30]} 2. e3 {[%emt 0:00:00]} Nf6 {[%emt 0:00:00]} 3. Nf3 {[%emt 0:00:00]} c6 {[%emt 0:00:00]} 4. Bd3 {[%emt 0:01:30]} Bg4 {[%emt 0:01:30]} 5. h3 {[%emt 0:01:30]} Bh5 {[%emt 0:00:00]} 6. O-O {[%emt 0:00:30]} Nbd7 {[%emt 0:00:00]} 7. Nbd2 {[%emt 0:00:30]} e6 {[%emt 0:00:30]} 8. Nb3 {[%emt 0:01:30]} a5 {[%emt 0:00:00]} 9. a4 {[%emt 0:00:00]} Bd6 {[%emt 0:00:00]} 10. Bd2 {[%emt 0:00:00]} b6 {[%emt 0:00:30]} 11. Be2 {[%emt 0:00:30]} Ne4 {[%emt 0:00:30]} 12. c3 {[%emt 0:00:30]} f5 {[%emt 0:00:30]} 13. Nc1 {[%emt 0:00:30]} O-O {[%emt 0:00:00]} 14. Nd3 {[%emt 0:00:30]} g5 {[%emt 0:03:00]} 15. Nfe5 {[%emt 0:00:30]} Bxe2 {[%emt 0:01:30]} 16. Qxe2 {[%emt 0:00:30]} Bxe5 {[%emt 0:00:00]} 17. Nxe5 {[%emt 0:00:30]} Nxe5 {[%emt 0:00:00]} 18. dxe5 {[%emt 0:00:00]} Nc5 {[%emt 0:00:30]} 19. Rad1 {[%emt 0:01:00]} Nb3 {[%emt 0:01:30]} 20. Rfe1 {[%emt 0:00:30]} c5 {[%emt 0:00:00]} 21. Qf3 {[%emt 0:02:30]} c4 {[%emt 0:00:00]} 22. Qg3 {[%emt 0:01:30]} Nc5 {[%emt 0:01:30]} 23. Bc1 {[%emt 0:01:30]} Qe7 {[%emt 0:00:30]} 24. f3 {[%emt 0:00:30]} Kh8 {[%emt 0:00:30]} 25. Re2 {[%emt 0:00:00]} Rg8 {[%emt 0:00:30]} 26. Rf1 {[%emt 0:01:00]} Raf8 {[%emt 0:00:30]} 27. Ree1 {[%emt 0:01:30]} Qc7 {[%emt 0:00:30]} 28. Rd1 {[%emt 0:00:30]} Qe7 {[%emt 0:00:30]} 29. Rde1 {[%emt 0:00:30]} Qc7 {[%emt 0:00:30]} 30. Rd1 {[%emt 0:00:30]} Qe7 {[%emt 0:01:30]} 31. Rde1 {[%emt 0:00:30]} 1/2-1/2

[Event "Centenary THK University 2019"]
[Site "Ankara"]
[Date "2019.05.18"]
[Round "3"]
[White "Oktem, Ege Tuna"]
[Black "Ozdemir, Emrehan"]
[Result "1-0"]
[ECO "B14"]
[WhiteElo "1235"]
[BlackElo "1309"]
[Annotator "NA"]
[PlyCount "71"]
[EventDate "2019.05.17"]
[EventType "swiss"]
[EventCountry "TUR"]
[SourceTitle "playchess.com"]
[Source "ChessBase"]
[SourceQuality "1"]
[TimeControl "5400+30"]

1. d4 {[%emt 0:30:30]} Nf6 {[%emt 0:31:30]} 2. Nf3 {[%emt 0:00:30]} g6 {[%emt 0:00:00]} 3. c4 {[%emt 0:00:30]} c5 {[%emt 0:00:00]} 4. e3 {[%emt 0:00:00]} cxd4 {[%emt 0:00:30]} 5. exd4 {[%emt 0:00:00]} d5 {[%emt 0:00:30]} 6. cxd5 {[%emt 0:00:00]} Nxd5 {[%emt 0:00:30]} 7. Nc3 {[%emt 0:00:00]} Bg7 {[%emt 0:00:00]} 8. Bc4 {[%emt 0:00:30]} Be6 {[%emt 0:01:00]} 9. Qb3 {[%emt 0:01:30]} Nxc3 {[%emt 0:04:30]} 10. Bxe6 {[%emt 0:01:30]} fxe6 {[%emt 0:03:30]} 11. bxc3 {[%emt 0:00:30]} Qd5 {[%emt 0:00:30]} 12. O-O {[%emt 0:00:30]} O-O {[%emt 0:03:30]} 13. Re1 {[%emt 0:01:30]} Nc6 {[%emt 0:14:30]} 14. Rxe6 {[%emt 0:00:30]} Qxb3 {[%emt 0:01:30]} 15. axb3 {[%emt 0:00:30]} Rf6 {[%emt 0:00:30]} 16. Rxf6 {[%emt 0:00:30]} Bxf6 {[%emt 0:01:30]} 17. Kf1 {[%emt 0:00:30]} Rd8 {[%emt 0:02:30]} 18. Ke2 {[%emt 0:02:30]} a6 {[%emt 0:04:30]} 19. Bb2 {[%emt 0:02:30]} e5 {[%emt 0:01:30]} 20. dxe5 {[%emt 0:07:30]} Nxe5 {[%emt 0:03:30]} 21. c4 {[%emt 0:03:30]} Nxf3 {[%emt 0:00:30]} 22. Bxf6 {[%emt 0:00:30]} Nd4+ {[%emt 0:00:30]} 23. Kd3 {[%emt 0:00:00]} Ne6+ {[%emt 0:16:56]} 24. Bxd8 {[%emt 0:00:00]} Nxd8 {[%emt 0:00:05]} 25. Ke4 {[%emt 0:01:30]} Kf7 {[%emt 0:00:44]} 26. Rd1 {[%emt 0:00:30]} Ne6 {[%emt 0:00:03]} 27. b4 {[%emt 0:00:30]} Ke7 {[%emt 0:01:45]} 28. Ke5 {[%emt 0:00:30]} Nd8 {[%emt 0:01:00]} 29. b5 {[%emt 0:00:30]} a5 {[%emt 0:00:34]} 30. Ra1 {[%emt 0:01:30]} b6 {[%emt 0:00:13]} 31. c5 {[%emt 0:00:00]} bxc5 {[%emt 0:01:33]} 32. Rxa5 {[%emt 0:00:00]} Nf7+ {[%emt 0:00:00]} 33. Kd5 {[%emt 0:00:00]} Kd7 {[%emt 0:01:26]} 34. Ra7+ {[%emt 0:01:00]} Ke8 {[%emt 0:00:14]} 35. Rxf7 {[%emt 0:00:30]} Kxf7 {[%emt 0:00:30]} 36. b6 {[%emt 0:00:00]} 1-0

[Event "Centenary THK University 2019"]
[Site "Ankara"]
[Date "2019.05.18"]
[Round "3"]
[White "Demir, Candost Aziz"]
[Black "Deveci, Huseyin Said"]
[Result "1-0"]
[ECO "C77"]
[WhiteElo "1148"]
[BlackElo "1274"]
[Annotator "NA"]
[PlyCount "53"]
[EventDate "2019.05.17"]
[EventType "swiss"]
[EventCountry "TUR"]
[SourceTitle "playchess.com"]
[Source "ChessBase"]
[SourceQuality "1"]
[TimeControl "5400+30"]

1. e4 {[%emt 0:30:30]} e5 {[%emt 0:30:30]} 2. Nf3 {[%emt 0:00:30]} Nc6 {[%emt 0:00:30]} 3. Bb5 {[%emt 0:00:00]} a6 {[%emt 0:00:00]} 4. Ba4 {[%emt 0:00:00]} Nf6 {[%emt 0:00:00]} 5. d3 {[%emt 0:00:00]} b5 {[%emt 0:00:30]} 6. Bb3 {[%emt 0:00:00]} d6 {[%emt 0:00:30]} 7. c3 {[%emt 0:00:00]} Be7 {[%emt 0:00:00]} 8. O-O {[%emt 0:00:00]} O-O {[%emt 0:00:00]} 9. Nbd2 {[%emt 0:00:30]} Be6 {[%emt 0:00:30]} 10. Bc2 {[%emt 0:00:00]} d5 {[%emt 0:00:30]} 11. exd5 {[%emt 0:02:00]} Nxd5 {[%emt 0:00:30]} 12. Re1 {[%emt 0:01:30]} f6 {[%emt 0:00:30]} 13. d4 {[%emt 0:03:30]} Bd6 {[%emt 0:06:30]} 14. Ne4 {[%emt 0:02:30]} Qd7 {[%emt 0:01:30]} 15. dxe5 {[%emt 0:07:30]} Nxe5 {[%emt 0:01:30]} 16. Nxe5 {[%emt 0:03:30]} Bxe5 {[%emt 0:03:30]} 17. Nc5 {[%emt 0:00:30]} Qc6 {[%emt 0:00:30]} 18. Nxe6 {[%emt 0:00:30]} Qxe6 {[%emt 0:00:30]} 19. f4 {[%emt 0:00:00]} Qb6+ {[%emt 0:00:00]} 20. Kh1 {[%emt 0:01:00]} Nxf4 {[%emt 0:01:00]} 21. Bxf4 {[%emt 0:00:30]} Bxf4 {[%emt 0:00:30]} 22. Qd5+ {[%emt 0:00:00]} Kh8 {[%emt 0:05:30]} 23. Qf5 {[%emt 0:00:00]} g6 {[%emt 0:01:30]} 24. Qxf4 {[%emt 0:00:00]} a5 {[%emt 0:04:30]} 25. Qh6 {[%emt 0:00:00]} f5 {[%emt 0:00:30]} 26. Re7 {[%emt 0:00:30]} Qf6 {[%emt 0:07:30]} 27. Qxh7# {[%emt 0:00:30]} 1-0

[Event "Centenary THK University 2019"]
[Site "Ankara"]
[Date "2019.05.18"]
[Round "4"]
[White "Ozalp, Burak"]
[Black "Ugur, Cem"]
[Result "0-1"]
[ECO "A43"]
[WhiteElo "1901"]
[BlackElo "1593"]
[Annotator "NA"]
[PlyCount "40"]
[EventDate "2019.05.17"]
[EventType "swiss"]
[EventCountry "TUR"]
[SourceTitle "playchess.com"]
[Source "ChessBase"]
[SourceQuality "1"]
[TimeControl "5400+30"]

1. d4 {[%emt 0:30:30]} Nf6 {[%emt 0:31:30]} 2. Nc3 {[%emt 0:00:00]} c5 {[%emt 0:04:30]} 3. d5 {[%emt 0:00:00]} d6 {[%emt 0:01:30]} 4. e4 {[%emt 0:00:30]} e6 {[%emt 0:01:30]} 5. Bb5+ {[%emt 0:02:30]} Bd7 {[%emt 0:00:30]} 6. dxe6 {[%emt 0:00:30]} fxe6 {[%emt 0:00:00]} 7. Bc4 {[%emt 0:00:30]} Qa5 {[%emt 0:14:00]} 8. Qe2 {[%emt 0:02:30]} Nc6 {[%emt 0:01:30]} 9. Bd2 {[%emt 0:07:30]} Nd4 {[%emt 0:15:30]} 10. Qd3 {[%emt 0:01:30]} Qb6 {[%emt 0:04:30]} 11. Rb1 {[%emt 0:02:30]} O-O-O {[%emt 0:00:30]} 12. Nf3 {[%emt 0:01:30]} d5 {[%emt 0:00:59]} 13. exd5 {[%emt 0:02:30]} exd5 {[%emt 0:00:14]} 14. Nxd4 {[%emt 0:06:30]} cxd4 {[%emt 0:03:45]} 15. Nxd5 {[%emt 0:02:30]} Qe6+ {[%emt 0:04:15]} 16. Ne3 {[%emt 0:05:30]} Qe5 {[%emt 0:00:32]} 17. f4 {[%emt 0:00:30]} Qxf4 {[%emt 0:03:09]} 18. Nf1 {[%emt 0:01:30]} Re8+ {[%emt 0:01:22]} 19. Kd1 {[%emt 0:02:30]} Bg4+ {[%emt 0:01:28]} 20. Kc1 {[%emt 0:00:30]} Re1# {[%emt 0:00:11]} 0-1

[Event "Centenary THK University 2019"]
[Site "Ankara"]
[Date "2019.05.18"]
[Round "4"]
[White "Alkan, Ferman"]
[Black "Buker, Muhittin"]
[Result "1-0"]
[ECO "E06"]
[WhiteElo "1876"]
[BlackElo "1993"]
[Annotator "NA"]
[PlyCount "47"]
[EventDate "2019.05.17"]
[EventType "swiss"]
[EventCountry "TUR"]
[SourceTitle "playchess.com"]
[Source "ChessBase"]
[SourceQuality "1"]
[TimeControl "5400+30"]

1. Nf3 {[%emt 0:30:30]} Nf6 {[%emt 0:30:30]} 2. c4 {[%emt 0:00:30]} e6 {[%emt 0:00:30]} 3. d4 {[%emt 0:00:00]} b6 {[%emt 0:00:30]} 4. g3 {[%emt 0:01:00]} Bb7 {[%emt 0:01:30]} 5. Bg2 {[%emt 0:00:00]} Be7 {[%emt 0:00:00]} 6. O-O {[%emt 0:00:00]} O-O {[%emt 0:00:00]} 7. Nc3 {[%emt 0:00:30]} d5 {[%emt 0:01:30]} 8. Ne5 {[%emt 0:03:30]} c6 {[%emt 0:01:30]} 9. b3 {[%emt 0:05:30]} Nbd7 {[%emt 0:01:30]} 10. f4 {[%emt 0:03:30]} Qc7 {[%emt 0:01:30]} 11. Bb2 {[%emt 0:00:30]} Rad8 {[%emt 0:00:30]} 12. Rc1 {[%emt 0:00:30]} Nxe5 {[%emt 0:00:30]} 13. fxe5 {[%emt 0:01:30]} Ng4 {[%emt 0:00:30]} 14. cxd5 {[%emt 0:04:30]} exd5 {[%emt 0:03:30]} 15. Qd2 {[%emt 0:02:30]} Qd7 {[%emt 0:05:30]} 16. e4 {[%emt 0:02:30]} dxe4 {[%emt 0:01:30]} 17. Nxe4 {[%emt 0:02:30]} Nxe5 {[%emt 0:00:30]} 18. Qc3 {[%emt 0:02:30]} Bb4 {[%emt 0:16:30]} 19. Qxb4 {[%emt 0:01:30]} Nd3 {[%emt 0:00:30]} 20. Qc3 {[%emt 0:00:00]} Nxc1 {[%emt 0:00:30]} 21. Rxc1 {[%emt 0:00:00]} f6 {[%emt 0:00:00]} 22. Ba3 {[%emt 0:01:30]} Rfe8 {[%emt 0:03:00]} 23. Nd6 {[%emt 0:00:30]} Re2 {[%emt 0:00:30]} 24. Qc4+ {[%emt 0:00:30]} 1-0

[Event "Centenary THK University 2019"]
[Site "Ankara"]
[Date "2019.05.18"]
[Round "4"]
[White "Celikel, Fatih"]
[Black "Guven, Oguz Kagan"]
[Result "0-1"]
[ECO "B20"]
[WhiteElo "1868"]
[BlackElo "2103"]
[Annotator "NA"]
[PlyCount "98"]
[EventDate "2019.05.17"]
[EventType "swiss"]
[EventCountry "TUR"]
[SourceTitle "playchess.com"]
[Source "ChessBase"]
[SourceQuality "1"]
[TimeControl "5400+30"]

1. e4 {[%emt 0:30:30]} c5 {[%emt 0:32:30]} 2. b3 {[%emt 0:00:00]} e5 {[%emt 0:01:30]} 3. Bc4 {[%emt 0:04:00]} Nc6 {[%emt 0:02:30]} 4. Nc3 {[%emt 0:02:30]} g6 {[%emt 0:01:30]} 5. Qf3 {[%emt 0:04:30]} Nf6 {[%emt 0:01:30]} 6. Nd5 {[%emt 0:01:30]} Bg7 {[%emt 0:01:30]} 7. c3 {[%emt 0:01:30]} O-O {[%emt 0:01:30]} 8. Ne2 {[%emt 0:02:30]} d6 {[%emt 0:00:30]} 9. d3 {[%emt 0:02:30]} Nxd5 {[%emt 0:02:30]} 10. Bxd5 {[%emt 0:00:30]} Kh8 {[%emt 0:07:30]} 11. h4 {[%emt 0:04:30]} h5 {[%emt 0:09:30]} 12. Qg3 {[%emt 0:01:30]} Ne7 {[%emt 0:01:30]} 13. Bg5 {[%emt 0:05:30]} f6 {[%emt 0:00:30]} 14. Bd2 {[%emt 0:00:30]} Nxd5 {[%emt 0:03:30]} 15. exd5 {[%emt 0:01:30]} Kh7 {[%emt 0:00:30]} 16. O-O {[%emt 0:02:30]} f5 {[%emt 0:09:37]} 17. Bg5 {[%emt 0:01:30]} Qb6 {[%emt 0:02:17]} 18. f4 {[%emt 0:03:30]} c4+ {[%emt 0:01:28]} 19. Kh1 {[%emt 0:01:30]} cxd3 {[%emt 0:01:02]} 20. Qxd3 {[%emt 0:00:30]} e4 {[%emt 0:00:16]} 21. Qd2 {[%emt 0:00:30]} Bd7 {[%emt 0:01:24]} 22. Nd4 {[%emt 0:02:30]} Rfe8 {[%emt 0:00:32]} 23. Qe3 {[%emt 0:00:30]} Rac8 {[%emt 0:00:57]} 24. Rfd1 {[%emt 0:00:30]} Qa5 {[%emt 0:03:31]} 25. c4 {[%emt 0:06:29]} Qc5 {[%emt 0:06:39]} 26. Rac1 {[%emt 0:01:34]} b5 {[%emt 0:01:31]} 27. Rd2 {[%emt 0:04:11]} Qb6 {[%emt 0:01:33]} 28. Kg1 {[%emt 0:03:02]} bxc4 {[%emt 0:01:35]} 29. bxc4 {[%emt 0:01:58]} Kg8 {[%emt 0:00:21]} 30. Kf2 {[%emt 0:01:28]} Kf7 {[%emt 0:00:00]} 31. Rc3 {[%emt 0:02:04]} Qc5 {[%emt 0:01:03]} 32. Rc1 {[%emt 0:01:58]} Rb8 {[%emt 0:01:02]} 33. Nb3 {[%emt 0:00:34]} Qxe3+ {[%emt 0:01:13]} 34. Kxe3 {[%emt 0:00:10]} Rec8 {[%emt 0:00:06]} 35. c5 {[%emt 0:01:46]} Rxb3+ {[%emt 0:00:50]} 36. axb3 {[%emt 0:00:30]} dxc5 {[%emt 0:00:00]} 37. Ra2 {[%emt 0:01:28]} Bd4+ {[%emt 0:00:26]} 38. Ke2 {[%emt 0:00:30]} Bb5+ {[%emt 0:00:30]} 39. Rc4 {[%emt 0:00:30]} a6 {[%emt 0:00:30]} 40. d6 {[%emt 0:00:30]} Ke6 {[%emt 0:00:30]} 41. Be7 {[%emt 0:02:08]} Rb8 {[%emt 0:00:00]} 42. Kd1 {[%emt 0:01:49]} Bxc4 {[%emt 0:00:43]} 43. bxc4 {[%emt 0:00:38]} Rb1+ {[%emt 0:00:16]} 44. Kc2 {[%emt 0:00:00]} Ra1 {[%emt 0:00:24]} 45. Rxa1 {[%emt 0:01:55]} Bxa1 {[%emt 0:00:01]} 46. Bf8 {[%emt 0:00:00]} Bd4 {[%emt 0:00:54]} 47. Be7 {[%emt 0:01:06]} Kd7 {[%emt 0:00:09]} 48. Kb3 {[%emt 0:00:05]} e3 {[%emt 0:00:08]} 49. Kc2 {[%emt 0:00:29]} a5 {[%emt 0:00:08]} 0-1